Cogmind - Beta 15 @@@ ROGUE MODE // 2025.06.01 @ 18:09:01 Player: CL-1C0 Result: Destroyed by 5R-TJ6(R) with Subdweller Machine Gun Performance ------------- Evolutions (0) 0 Regions Visited (3) 600 Robots Destroyed (33) 165 Value Destroyed (861) 861 Prototype IDs (11) 220 Alien Tech Used (0) 0 Bonus (65) 65 TOTAL SCORE: 1911 Bonus ------- Follower Combat Kills 65 Cogmind --------- Core Integrity 0/250 Matter 185/300 Energy 196/200 System Corruption 0% Temperature Cool (0) Movement Rolling (110) Location -10/Subcaves Parts ------- > --- POWER (1) -------- Subdweller Power Source > --- PROPULSION (2) --- Subdweller Monowheel Subdweller Monowheel > --- UTILITY (2) ------ Large Storage Unit Improved Light Armor Plating > --- WEAPON (2) ------- Subdweller Machine Gun Battle Cannon > --- INVENTORY (15) --- Cargo Legs Subdweller Monowheel Cesium-ion Thruster Scrap Shield System Shield High-powered Tractor Beam Subdweller Laser EM Pulse Cannon Powered Cannon Barrage Gun Grenade Launcher Rocket Launcher Peak State ------------ > --- POWER ------------ Subdweller Power Source > --- PROPULSION ------- Subdweller Monowheel Subdweller Monowheel > --- UTILITY ---------- Large Storage Unit Improved Light Armor Plating > --- WEAPON ----------- Subdweller Machine Gun Bore Cannon > --- INVENTORY -------- Cargo Legs Subdweller Monowheel Cesium-ion Thruster Scrap Shield System Shield High-powered Tractor Beam Subdweller Laser EM Pulse Cannon Powered Cannon Barrage Gun Grenade Launcher Rocket Launcher [Rating: 22] Favorites ----------- Power Light Ion Engine Engine Light Ion Engine Propulsion Light Treads Treads Light Treads Leg Aluminum Leg Wheel Wheel Utility Large Storage Unit Storage Large Storage Unit Processor Targeting Computer Protection Improved Light Armor Plating Weapon Assault Cannon Energy Gun Subdweller Laser Ballistic Gun Light Assault Rifle Ballistic Cannon Assault Cannon Build | -11 -10 -10 -10 ------- Run | Yrd Mat Min Sub Slots Evolved . | . . . . Power . | . . . . Propulsion . | . . . . Utility . | . . . . Weapon . | . . . . Parts Attached 16 | . 3 3 10 Power 2 | . . . 2 Engine 2 | . . . 2 Core . | . . . . Reactor . | . . . . Propulsion 5 | . . 2 3 Treads 2 | . . 2 . Leg . | . . . . Wheel 3 | . . . 3 Hover . | . . . . Flight . | . . . . Utility 3 | . 2 . 1 Device . | . . . . Storage 1 | . 1 . . Processor 1 | . 1 . . Hackware . | . . . . Protection 1 | . . . 1 Artifact . | . . . . Weapon 6 | . 1 1 4 Energy Gun 1 | . . . 1 Energy Cannon . | . . . . Ballistic Gun 2 | . 1 . 1 Ballistic Cannon 3 | . . 1 2 Launcher . | . . . . Special Weapon . | . . . . Impact Weapon . | . . . . Slashing Weapon . | . . . . Piercing Weapon . | . . . . Special Melee Weapon . | . . . . Unidentified Prototypes . | . . . . Parts Lost 6 | . . . 6 Power 1 | . . . 1 Propulsion 3 | . . . 3 Utility . | . . . . Weapon 2 | . . . 2 Highest Loss Streak 1 | . . . 1 To Critical Strikes . | . . . . Average Backups 12 | . 9 14 12 Power . | . 1 1 . Propulsion 3 | . 4 3 2 Utility 3 | . . 4 3 Weapon 5 | . 3 5 6 Tool/Special . | . . . . Unused Backups 29 | . . 9 20 Power 2 | . . 1 1 Propulsion 6 | . . 3 3 Utility 6 | . . . 6 Weapon 15 | . . 5 10 Tool/Special . | . . . . Average Slot Usage (%) 98 | . 92 100 98 Engine 13 | . 14 14 13 Treads 18 | . . 16 22 Leg 6 | . 28 11 . Wheel 3 | . . . 5 Storage 14 | . 14 14 14 Processor 6 | . 6 14 1 Protection 6 | . . . 11 Energy Gun 4 | . . . 7 Ballistic Gun 9 | . 28 15 3 Ballistic Cannon 13 | . . 12 16 Peak Build Rating 22 | . 8 12 22 Average Rating 14 | . 7 10 17 On Entrance 8 | 6 6 8 12 Naked Turns . | . . . . Heaviest Build 42 | 11 26 29 42 Greatest Support 40 | 20 20 40 40 Greatest Overweight (x) 4 | . 1 1 4 Average Overweight (x) . | . . . . Largest Inventory Capacity 15 | . 15 15 15 Average Capacity 14 | . 13 15 15 Most Carried 15 | . 12 15 15 Average Carried 14 | . 9 14 14 Final Capacity 15 | 8 15 15 15 Final Carried 15 | 6 12 15 15 Class Distribution -------------------- 96% | Mutant 3% | Scavenger-Mutant Dominant Class ---------------- Mutant | -10/Materials Mutant | -10/Mines Mutant | -10/Subcaves Resources | -11 -10 -10 -10 ----------- Run | Yrd Mat Min Sub Matter Collected 974 | 200 76 126 572 Remotely . | . . . . Salvage Created 955 | . 121 197 637 Parts 69 | . 14 14 41 Haulers Intercepted . | . . . . Recyclers Shooed . | . . . . Parts Field Recycled . | . . . . Retrieved Matter . | . . . . Parts Self-Destructed 11 | . . . 11 Prevented . | . . . . Kills | -11 -10 -10 -10 ------- Run | Yrd Mat Min Sub Combat Hostiles Destroyed 30 | . 6 6 18 Guns 14 | . 6 3 5 Cannons 16 | . . 3 13 Classes Destroyed 6 | . 2 1 3 Recycler 2 | . . 2 . Watcher 1 | . 1 . . Swarmer 12 | . 6 6 . Grunt 2 | . . . 2 Sentry 1 | . . . 1 Subdweller 15 | . . . 15 Best Kill Streak 4 | . 2 4 3 Combat Bots Only 3 | . 2 3 3 Max Kills in Single Turn 1 | . 1 1 1 Gunslinging . | . . . . Exploded . | . . . . Melee . | . . . . Uniques/NPCs Destroyed . | . . . . Combat | -11 -10 -10 -10 -------- Run | Yrd Mat Min Sub Hostile Shots Fired 132 | . 30 29 73 Missed 42 | . 12 10 20 Hits 90 | . 18 19 53 Projectile 90 | . 18 19 53 Critical Strikes 4 | . . 1 3 Damage Taken 1436 | . 142 155 1139 Core 256 | . 41 32 183 Absorbed by Shields . | . . . . Core Remaining (%) 100 | 100 . . . Volleys Fired 113 | . 14 15 84 Largest 2 | . 2 2 2 Hottest 97 | . 40 57 97 Shots Fired 184 | . 28 30 126 Gun 76 | . 28 16 32 Cannon 108 | . . 14 94 Launcher . | . . . . Special . | . . . . Kinetic 171 | . 28 30 113 Thermal 13 | . . . 13 Explosive . | . . . . Electromagnetic . | . . . . Robot Hit Streak 31 | . 5 8 31 Robot Miss Streak 4 | . 3 3 4 Penetration Max . | . . . . Secondary Targets . | . . . . Shots Hit Robots 112 | . 11 17 84 Core Hits 47 | . 7 10 30 Critical Kills 5 | . . . 5 Critical Parts Destroyed 4 | . . . 4 Critical Strikes 17 | . . . 17 Destroy 17 | . . . 17 Melee Attacks . | . . . . Impact . | . . . . Slashing . | . . . . Piercing . | . . . . Sneak Attacks . | . . . . Combat Hostiles . | . . . . Follow-up Attacks . | . . . . Damage Inflicted 2299 | . 129 293 1877 Guns 795 | . 127 61 607 Cannons 1485 | . . 215 1270 Explosions . | . . . . Melee . | . . . . Ramming 19 | . 2 17 . Kinetic 2020 | . 127 276 1617 Thermal 260 | . . . 260 Explosive . | . . . . Electromagnetic . | . . . . Impact . | . . . . Slashing . | . . . . Piercing . | . . . . Highest Corruption . | . . . . Average Corruption . | . . . . Corruption Purged . | . . . . Corruption Blocked . | . . . . Overload Shots . | . . . . Overflow Damage 5 | . . 5 . Projectiles 5 | . . 5 . Explosions . | . . . . Melee . | . . . . Knockbacks 18 | . . 3 15 Impact . | . . . . Kinetic 18 | . . 3 15 Secondary . | . . . . Self-Inflicted Damage . | . . . . Shots . | . . . . Rammed 1 | . . 1 . Targets Rammed 3 | . 1 2 . Kicked 1 | . 1 . . Crushed 1 | . . 1 . Highest Temperature 32 | . . 32 1 Average Temperature 14 | . . 15 1 Received Heat Transfer 285 | . 6 . 279 Siege Activations . | . . . . Martial Activations . | . . . . Shielding Activations . | . . . . Robots Disrupted . | . . . . Combat Hostiles . | . . . . Robots Corrupted . | . . . . Combat Hostiles . | . . . . Parts Fried . | . . . . Impact Corruptions . | . . . . Robots Melted . | . . . . Combat Hostiles . | . . . . Parts Melted 2 | . . . 2 Heat Transferred 325 | . . . 325 Parts Sabotaged . | . . . . Parts Stolen . | . . . . Parts Stripped . | . . . . Power Chain Reactions . | . . . . Alert | -11 -10 -10 -10 ------- Run | Yrd Mat Min Sub Maximum Alert Level . | . . . . Low Security (%) 100 | . 100 100 . Level 1 . | . . . . Level 2 . | . . . . Level 3 . | . . . . Level 4 . | . . . . Level 5 . | . . . . High Security . | . . . . Max Security . | . . . . Peak Influence 87 | . 87 70 . Initial 30 | . . 30 . Average 16 | . 39 11 . Influence Increases 488 | . 207 153 128 Destroy 0b10 Robot/C 320 | . 120 120 80 Destroy 0b10 Robot/NC 15 | . 5 10 . Destroy Leader 52 | . 22 20 10 Allied During Kill 8 | . . . 8 Destroy Structure 3 | . . 3 . Lose Combat Pursuer 90 | . 60 . 30 Influence Decreases 488 | . 130 230 128 Entered New Map 47 | . . 47 . Time Decay 422 | . 130 183 109 Lost Part 19 | . . . 19 Squads Dispatched 1 | . . 1 . Investigation 1 | . . 1 . Extermination . | . . . . Reinforcement . | . . . . Assault . | . . . . Garrison . | . . . . Intercept . | . . . . Searches Triggered . | . . . . Construction Impeded . | . . . . Haulers Reinforced . | . . . . Active Scanning Responses . | . . . . Cargo Convoy Interrupts . | . . . . Stealth | -11 -10 -10 -10 --------- Run | Yrd Mat Min Sub Distress Signals 3 | . 3 . . Communications Jammed . | . . . . Distress Signals . | . . . . Times Spotted 40 | . 14 5 21 Peak Tracking Total 4 | . 4 3 3 Tactical Retreats 4 | . 2 . 2 Traps | -11 -10 -10 -10 ------- Run | Yrd Mat Min Sub Traps Triggered 1 | . . . 1 Indirectly . | . . . . Trap Hack Attempts . | . . . . Triggered . | . . . . Disarmed . | . . . . Reprogrammed . | . . . . Reused . | . . . . Traps Extracted . | . . . . Installed . | . . . . Triggered . | . . . . Most Traps Carried 1 | . . . 1 Machines | -11 -10 -10 -10 ---------- Run | Yrd Mat Min Sub Machines Disabled 1 | . . . 1 Max in Single Turn 1 | . . . 1 Machines Repaired . | . . . . Machines Dismantled . | . . . . Machines Sabotaged . | . . . . Overloaded Fab Kills . | . . . . Hacking | -11 -10 -10 -10 --------- Run | Yrd Mat Min Sub Machines Accessed 4 | . 1 1 2 Terminals 1 | . 1 . . Fabricators . | . . . . Repair Stations . | . . . . Recycling Units . | . . . . Scanalyzers . | . . . . Garrison Access . | . . . . Total Hacks 15 | . 1 1 13 Successful 14 | . . 1 13 Failed 1 | . 1 . . Catastrophic 1 | . 1 . . Database Lockouts . | . . . . Manual . | . . . . Terminals 1 | . 1 . . Fabricators . | . . . . Repair Stations . | . . . . Recycling Units . | . . . . Scanalyzers . | . . . . Garrison Access . | . . . . Terminal Hacks 14 | . . 1 13 Record 12 | . . . 12 Open Door 1 | . . 1 . Proto ID Catalog 1 | . . . 1 Fabricator Hacks . | . . . . Repair Station Hacks . | . . . . Recycling Unit Hacks . | . . . . Scanalyzer . | . . . . Garrison Access Hacks . | . . . . Unauthorized Hacks . | . . . . Terminals . | . . . . Fabricators . | . . . . Repair Stations . | . . . . Recycling Units . | . . . . Scanalyzers . | . . . . Garrison Access . | . . . . Data Cores Recovered . | . . . . Used . | . . . . Hacking Detections 1 | . 1 . . Full Trace Events . | . . . . Feedback Events . | . . . . Feedback Blocked . | . . . . Robot Schematics Acquired . | . . . . Robots Built . | . . . . Authchips . | . . . . Time . | . . . . Total Robot Build Rating . | . . . . Part Schematics Acquired . | . . . . Parts Built . | . . . . Authchips . | . . . . Time . | . . . . Total Part Build Rating . | . . . . Parts Repaired . | . . . . Time . | . . . . Parts Recycled . | . . . . Recycled Matter . | . . . . Retrieved Matter . | . . . . Retrieved Components . | . . . . Parts Scanalyzed . | . . . . Part Schematics Acquired . | . . . . Parts Damaged . | . . . . Bothacking | -11 -10 -10 -10 ------------ Run | Yrd Mat Min Sub Used RIF Installer . | . . . . Robots Hacked . | . . . . Non-combat . | . . . . Combat . | . . . . Robot Hacks Applied . | . . . . Relay Couplers Released . | . . . . Fabnet Peak Effective % . | . . . . Robots Rewired . | . . . . Allies Hacked . | . . . . Hacks Repelled . | . . . . Allies | -11 -10 -10 -10 -------- Run | Yrd Mat Min Sub Total Allies 4 | . . 4 . Largest Group 3 | . . 3 3 Highest-Rated Group 40 | . . 40 40 Highest-Rated Ally 31 | . . 31 16 Total Orders . | . . . . Ally Attacks 27 | . . 7 20 Total Damage 326 | . . 84 242 Kills 2 | . . . 2 Allies Corrupted . | . . . . Allies Melted . | . . . . Intel | -11 -10 -10 -10 ------- Run | Yrd Mat Min Sub Active Infowar (turns) . | . . . . Robot Analysis Total . | . . . . Derelict Logs Recovered 2 | . . 1 1 Drone Launches . | . . . . Drone Recoveries . | . . . . Exploration | -11 -10 -10 -10 ------------- Run | Yrd Mat Min Sub Turns Passed 3948 | . 293 1366 2289 Spaces Moved 2096 | 1 131 677 1287 Core . | . . . . Treads 1360 | . . 477 883 Legs 332 | 1 131 200 . Wheels 404 | . . . 404 Hover . | . . . . Flight . | . . . . Fastest Speed 107 | 120 120 160 107 Average Speed 159 | 120 177 168 152 Slowest Speed 320 | 120 190 190 320 Overloaded Moves . | . . . . Propulsion Burnouts . | . . . . Robots Hopped . | . . . . Potential Cave-ins . | . . . . Cave-ins Triggered . | . . . . Exploration Rate (%) 50 | 2 27 98 75 Regions Visited 3 Branch Regions 2 Pre-discovered Areas 3 | . . 1 2 Known Exits Taken . | . . . . Unknown Exits Taken 3 | 1 1 1 . Scrap Searched 5 | . . 2 3 Spaces Dug 6 | . . . 6 Terrain Destroyed 29 | . . 3 26 Melee . | . . . . Projectile 29 | . . 3 26 AOE . | . . . . Terrain Rammed . | . . . . Walls Destroyed . | . . . . Machines Disabled . | . . . . Actions | -11 -10 -10 -10 --------- Run | Yrd Mat Min Sub Total 2529 | . 165 876 1488 Wait 256 | . 11 160 85 Move 2093 | . 130 676 1287 Hop . | . . . . Pick Up 26 | . 5 11 10 Fast Attach 8 | . 2 1 5 Attach 6 | . . 2 4 Detach . | . . . . Swap 2 | . 1 . 1 Drop 22 | . 1 9 12 Fire 113 | . 14 15 84 Melee . | . . . . Ram . | . . . . Kick 1 | . 1 . . Crush 2 | . . 2 . Escape Stasis . | . . . . Rewire . | . . . . Trap . | . . . . Miscellaneous . | . . . . Route ------- -11/Scrapyard -10/Materials -10/Mines (discovered 3 exits: [*Mat x2] / *Sub) -10/Subcaves (discovered 2 exits: [*Mat x2]) History --------- Turn | Location | Event 1 | -11/Scrapyard | Discovered new exit (range 0) 1 | -11/Scrapyard | Entered Materials 212 | -10/Materials | Discovered new exit (range 6) 294 | -10/Materials | Entered Mines 297 | -10/Mines | Received a Mining Laser from a helpful Derelict 302 | -10/Mines | Build established: Mutant 328 | -10/Mines | Discovered new exit (range 14) 390 | -10/Mines | Met a Derelict shopkeep closing up shop 470 | -10/Mines | Learned location of Zion (-7) 917 | -10/Mines | Discovered new exit (range 12) 1155 | -10/Mines | A weapon hastily lodged in a ceiling crevice suddenly fell to the ground 1566 | -10/Mines | Received a Rocket Launcher from a helpful Derelict 1604 | -10/Mines | Assisted by bots powering up and referring to "LRC-V3" 1647 | -10/Mines | Discovered new exit (range 6) 1660 | -10/Mines | Entered Subcaves 1660 | -10/Subcaves | Accompanied by 3 allies 1952 | -10/Subcaves | A Subdweller sparked back to life 1952 | -10/Subcaves | A Subdweller sparked back to life 1952 | -10/Subcaves | A Subdweller sparked back to life 1983 | -10/Subcaves | Found Prototype Energy Cannon 1991 | -10/Subcaves | Lost 3 allies 2062 | -10/Subcaves | Met a Zionite searching for "candidates" 2256 | -10/Subcaves | Visited Clippyterm 2261 | -10/Subcaves | Learned location of Section 7 (-2) 2446 | -10/Subcaves | Visited 4L-MR0's lab 2463 | -10/Subcaves | Found Prototype Leg 2467 | -10/Subcaves | Identified Cargo Legs 2467 | -10/Subcaves | Identified Powered Cannon 2988 | -10/Subcaves | Discovered new exit (range 13) 3049 | -10/Subcaves | Shifting Twisted Machinery released Flamer 3081 | -10/Subcaves | Shifting Twisted Machinery released Piercing Trap 3430 | -10/Subcaves | Core integrity fell below 50% 3737 | -10/Subcaves | Discovered new exit (range 13) 3858 | -10/Subcaves | Learned Materials stockpile data 3908 | -10/Subcaves | Shifting Twisted Machinery released Scrap Shield 3941 | -10/Subcaves | Core integrity fell below 20% 3949 | -10/Subcaves | Destroyed by 5R-TJ6(R) with Subdweller Machine Gun Last Messages --------------- 03814_ Wheel destroyed. 03816_ HV Slug penetrates XM-1X3(R). 03816_ HV Slug penetrates Twisted Machinery. 03819_ HV Slug penetrates XM-1X3(R). 03822_ XM-1X3(R) destroyed. 03822_ HV Slug penetrates Twisted Machinery. 03825_ Acquired 32 matter. 03827_ Acquired Sub. Monowheel. 03829_ Acquired 26 matter. 03831_ Acquired Sub. Power Source. 03834_ Acquired 1 matter. 03858_ Acquired derelict log, extracted data. Data stored: Materials stockpile data. 03894_ Dropped Bore Cannon. 03894_ Acquired Battle Cannon. 03896_ Acquired 53 matter. Scrap Shield falls loose from the Twisted Machinery. 03937_ 5R-TJ6(R) knocked back. 03943_ KI-2O0(R) knocked back. 03946_ KI-2O0(R) destroyed. Map ----- +----------------------------------------------------+ | ?? ?????????????????????????????????????????## | | ???##?????????????????????????????????????????# | | ??????????????????????????????????????????????# | | #???????????????????????????????????????????????## | | ?????????????????????????????????????????????????? | | ?????????????????????????????????????????????????? | | ?????????????????????????????????????????????????? | | ?????????????????????????????????????????????????? | | ?????????????????????????????????????????????????? | | ?????????????????????????????????????????????????? | | ?????????????????????????????????????????????????# | | ?????????????????????????????????????????????????# | | ?????????????????????????????????????????????????# | | ?????????????????????????????????????????????????? | | ?????????????????????????????????????????????????? | | ?????????????????????????????????????????????????? | | ?????????????????????????????????????????????????? | | ???????????? " ?????????????????????????????????# | | ????????????? ####????????????????????????#### | | ?????????????# """ #???????????????????????# " | | ??????????????? """ ##?????????????????????# "" | | ??????????????? "" " #??????????############ "" | | ???????????????? "" " ####??????## # ## # # " | | ?????????????????????# =%!#?###??# & | | ?????????????????????# #%R### #??## | | | ?????????????????????####@ % ##??# # ### * | | ????????????????????????## ## #### #####?#] # | | ?????????????????????????##### # #?????# ## | | ????????????????????????????# #?????# ## | | ????????????????????????????####"## #?????###### | | ???????????????????????????????#### "##??????????# | | ??????????????????????????????????# "#??????????# | | ??????????????????????????????????# "#??????????# | | ??????????????????????????????????##!#??????????# | | ??????????????????????????????????? "#??????????## | | ???????????????????????????????????" ???????????? | | ???????????????????????????????????? ???##?#####? | | ????????????????????????????????? "" ### ## ## | | ????????????????????????????????? "" " """ | | ????????????????????????????????? "" """"" | | ?????????????????????????????????# # "###""## | | ?????????????????????????????????## ??###??####? | | ??????????????????????????????????##?????????????? | | ?????????????????????????????????????????????????? | | ?????????????????????????????????????????????????? | | ?????????????????????????????????????????????????? | | ?????????????????????????????????????????????????? | | ?????????????????????????????????????????????????? | | ?????????????????????????????????????????????????? | | ?????????????????????????????????????????????????? | +----------------------------------------------------+ Best States ------------- Heat Dissipation 25 Energy Generation 15 Energy Capacity 250 Matter Stores 300 Matter Capacity 300 Sight Range 16 Terrain Scan Density 10 Armor Coverage 150 Evasion (%) 55 Targeting Accuracy 5 Recoil Reduction 2 Item Schematics ----------------- None Robot Schematics ------------------ None Fabricated ------------ Nothing Repaired ---------- Nothing Alien Tech Used ----------------- None Achievements -------------- None Challenges ------------ None Game ------ Seed CoolingWeaponsWartreads Manual? 0 Play Time 00:19:17 Cumulative 509.4 hours Start 2025.06.01 @ 16:33:49 End 2025.06.01 @ 18:09:01 Sessions 1 Manual Loads 0 Difficulty Rogue Special Mode None Game No. 560 Rogue 560 Adventurer 0 Explorer 0 Win Type - Total 14 Types 9/0/4/1/0/0/0/0/0/0 Lore% 81 Gallery% 80 Achievement% 82 Wizard Run 0 Options --------- Layout 0 ASCII 0 Keyboard 0 Movement Numpad Keybinds 0 Fullscreen 1 Font 18/SmallcapsGlow Map View 76x50 Zoom Use 0% Tactical HUD 1 Map Filters NONE Filters NONE Steam 1 RUN: f68675ee-b2da-490b-b6cc-b69a3f139f71